bitfinex/quotes_SOLUSD_20240622
["timestamp","ask_amount","ask_price","bid_price","bid_amount"]
[1719024380911,10.0,135.01,135.0,7.38]
[1719024384916,10.0,134.99,134.96,29.52]
[1719024385100,10.0,135.03,134.98,7.38]
[1719024385307,10.0,135.03,135.0,7.38]
[1719024385501,10.0,135.01,134.96,29.52]
[1719024385808,10.0,134.99,134.96,29.52]
[1719024386115,10.0,134.99,134.98,7.38]
[1719024387817,10.0,134.99,134.93,21.3368]
[1719024388013,10.0,134.99,134.98,7.38]
[1719024391612,10.0,134.99,134.96,29.52]
[1719024391819,10.0,134.99,134.98,7.38]
[1719024396003,10.0,134.99,134.93,21.3368]
[1719024396202,10.0,134.99,134.98,7.38]
[1719024396613,10.0,135.01,134.98,7.38]
[1719024396921,10.0,135.01,135.0,7.38]
[1719024397118,15.1773,135.05,135.0,7.38]
[1719024397119,10.0,135.05,135.0,7.38]
[1719024397422,16.1383,135.09,135.04,7.38]
[1719024397607,16.1383,135.09,135.03,29.52]
[1719024397608,10.0,135.1,135.08,7.38]
[1719024397810,10.0,135.1,135.09,7.38]
[1719024398118,10.0,135.1,135.01,0.17]
[1719024398321,10.0,135.1,135.09,7.38]
[1719024398614,10.0,135.07,135.04,7.38]
[1719024398815,17.38,135.09,134.99,20.0]
[1719024399020,7.38,135.08,135.03,7.38]
[1719024399220,17.72,135.09,135.04,7.38]
[1719024399917,17.72,135.09,135.05,7.38]
[1719024399918,10.0,135.07,135.05,7.38]
[1719024400523,10.0,135.07,135.04,7.38]
[1719024400906,10.0,135.07,135.03,7.38]
[1719024401103,26.1383,135.07,134.99,20.0]
[1719024401310,26.1383,135.07,135.01,7.38]
[1719024401506,27.38,135.06,135.01,7.38]
[1719024401913,7.38,135.05,135.0,7.38]
[1719024402508,10.0,135.04,135.0,7.38]
[1719024402812,26.1999,135.06,134.92,26.1383]
[1719024402813,7.38,135.01,134.92,26.1383]
[1719024402998,10.0,134.99,134.96,7.38]
[1719024403327,10.0,134.99,134.95,7.38]
[1719024403629,23.5183,135.0,134.95,7.38]
[1719024404201,10.0,134.99,134.95,7.38]
[1719024404623,10.0,134.99,134.91,15.9936]
[1719024404818,10.0,134.99,134.95,7.38]
[1719024405205,10.0,134.97,134.9,6.0726]
[1719024405420,10.0,134.97,134.84,0.8854764]
[1719024405421,6.5865,134.94,134.84,0.8854764]
[1719024405607,10.0,134.92,134.84,0.8854764]
[1719024405913,10.0,134.9,134.84,0.8854764]
[1719024406517,10.0,134.92,134.84,0.8854764]
[1719024407613,16.5865,134.94,134.85,0.17]
[1719024407822,16.5865,134.94,134.84,0.8854764]
[1719024408035,10.0,134.92,134.84,0.8854764]
[1719024408422,10.0,134.92,134.84,20.8854764]
[1719024409733,16.5865,134.94,134.86,22.2]
[1719024410125,0.17,134.93,134.86,22.2]
[1719024410338,10.0,134.92,134.84,20.8854764]
[1719024410520,10.0,134.92,134.84,0.8854764]
[1719024411526,16.5865,134.94,134.84,0.8854764]
[1719024411721,16.5865,134.94,134.86,22.2]
[1719024413141,0.17,134.93,134.84,0.8854764]
[1719024413442,0.34,134.93,134.84,0.8854764]
[1719024414021,10.0,134.92,134.84,0.8854764]
[1719024415437,10.0,134.92,134.84,20.8854764]
[1719024415749,10.0,134.92,134.84,0.8854764]
[1719024416150,10.0,134.89,134.84,0.8854764]
[1719024416457,26.3696,134.91,134.84,0.8854764]
[1719024416748,20.17,134.9,134.84,0.8854764]
[1719024417134,10.0,134.89,134.87,7.4142]
[1719024418256,10.0,134.89,134.84,0.8854764]
[1719024418550,0.17,134.88,134.84,0.8854764]
[1719024418737,10.0,134.89,134.86,7.415]
[1719024419352,10.0,134.89,134.87,7.4144]
[1719024419849,10.0,134.89,134.88,7.4139]
[1719024420259,10.0,134.89,134.87,7.4143]
[1719024422836,26.1996,134.91,134.84,0.8854764]
[1719024423056,10.0,134.93,134.92,7.4117]
[1719024423259,10.0,134.93,134.84,23.0854764]
[1719024423457,10.0,134.93,134.92,7.4117]
[1719024424564,10.0,134.93,134.85,20.34]
[1719024424565,10.0,134.93,134.85,20.0]
[1719024425062,10.0,134.93,134.84,0.8854764]
[1719024425453,0.17,134.92,134.84,0.8854764]
[1719024425847,10.0,134.91,134.84,0.8854764]
[1719024426561,10.0,134.91,134.88,7.4139]
[1719024427661,16.5623,134.88,134.84,0.8854764]
[1719024427843,16.5623,134.88,134.85,7.4153]
[1719024428045,16.5623,134.88,134.84,0.8854764]
[1719024428262,16.5623,134.88,134.87,7.4145]
[1719024429264,16.5623,134.88,134.84,0.8854764]
[1719024429643,10.17,134.87,134.85,7.4154]
[1719024429842,10.0,134.87,134.84,0.8854764]
[1719024430056,10.0,134.87,134.85,7.4151]
[1719024430669,10.0,134.87,134.86,7.415]
[1719024431946,10.0,134.87,134.85,7.4154]
[1719024436277,10.0,134.87,134.85,6.9154]
[1719024436573,10.0,134.87,134.84,0.8854764]
[1719024436758,10.0,134.87,134.84,8.3015764]
[1719024436958,10.0,134.87,134.84,0.8854764]
[1719024437965,10.0,134.85,134.84,0.8854764]
[1719024438368,30.17,134.85,134.84,0.8854764]
[1719024439181,30.34,134.85,134.84,0.8854764]
[1719024440144,10.0,134.82,134.8,7.4182]
[1719024440579,10.0,134.82,134.81,7.4178]
[1719024441466,10.0,134.82,134.81,6.9178]
[1719024442874,10.0,134.82,134.75,22.5795]
[1719024443177,10.0,134.82,134.71,6.02504203]
[1719024443178,10.0,134.82,134.72,38.7657]
[1719024443471,10.0,134.8,134.73,20.17]
[1719024443674,10.0,134.82,134.73,20.17]
[1719024444454,10.0,134.82,134.73,20.0]
[1719024444862,10.0,134.82,134.79,7.4187]
[1719024445067,10.0,134.82,134.78,7.4193]
[1719024445273,10.0,134.82,134.73,20.0]
[1719024445274,6.4012,134.8,134.73,20.0]
[1719024445588,15.3572,134.79,134.76,7.4202]
[1719024446070,25.3572,134.79,134.76,7.4204]
[1719024446275,25.3572,134.79,134.7,20.8854764]
[1719024446586,25.3572,134.79,134.7,20.3854764]
[1719024447087,25.3572,134.79,134.78,7.4194]
[1719024448477,10.0,134.81,134.79,7.4184]
[1719024448675,10.0,134.81,134.73,20.0]
[1719024449009,10.0,134.81,134.74,0.17]
[1719024449185,10.0,134.81,134.77,7.4199]
[1719024449380,10.0,134.79,134.77,7.4199]
[1719024449908,10.0,134.79,134.72,22.2]
[1719024450477,10.0,134.79,134.76,7.4202]
[1719024450706,10.0,134.79,134.75,7.4209]
[1719024450892,10.0,134.76,134.75,7.4209]
[1719024451087,0.17,134.78,134.75,7.4209]
[1719024451292,0.17,134.78,134.7,0.3854764]
[1719024451293,0.34,134.78,134.7,0.3854764]
[1719024451501,0.34,134.78,134.75,7.421]
[1719024451810,0.34,134.78,134.74,7.4215]
[1719024452102,10.0,134.77,134.74,7.4215]
[1719024452511,10.0,134.75,134.74,7.4215]
[1719024452724,15.3572,134.77,134.74,7.4215]
[1719024453006,15.3572,134.77,134.75,7.4211]
[1719024453206,10.0,134.76,134.75,7.4211]
[1719024455600,15.3572,134.77,134.76,7.4205]
[1719024456104,10.0,134.78,134.77,7.42]
[1719024457405,6.4012,134.81,134.8,7.4183]
[1719024457716,6.4012,134.81,134.72,22.2]
[1719024457882,10.0,134.8,134.78,7.4192]
[1719024458800,10.0,134.8,134.77,7.4198]
[1719024458987,10.0,134.78,134.77,7.4198]
[1719024459187,10.0,134.8,134.78,7.4194]
[1719024459389,10.0,134.8,134.72,22.2]
[1719024459390,10.0,134.78,134.72,22.2]
[1719024459693,10.0,134.78,134.77,7.42]
[1719024459909,10.0,134.8,134.78,7.4194]
[1719024460793,10.0,134.8,134.77,7.4197]
[1719024461195,10.0,134.78,134.77,7.4197]
[1719024461607,10.0,134.78,134.76,7.4203]
[1719024462198,10.0,134.76,134.75,7.4208]
[1719024462399,25.3572,134.78,134.74,7.4214]
[1719024462604,0.34,134.77,134.75,7.421]
[1719024462997,10.0,134.76,134.75,7.421]
[1719024464409,10.0,134.76,134.74,7.4215]
[1719024464722,25.3572,134.78,134.74,7.4215]
[1719024465018,10.0,134.75,134.74,7.4215]
[1719024466722,10.0,134.75,134.73,7.422]
[1719024466920,10.0,134.75,134.72,7.4225]
[1719024467512,10.0,134.73,134.72,7.4225]
[1719024468318,10.0,134.73,134.7,7.8088764]
[1719024468522,0.17,134.74,134.71,7.4232]
[1719024468711,0.17,134.74,134.71,7.4231]
[1719024468915,10.0,134.72,134.71,7.4231]
[1719024469224,10.0,134.72,134.7,7.8091764]
[1719024469811,10.0,134.72,134.71,7.4233]
[1719024470504,10.17,134.74,134.72,7.4227]
[1719024470727,10.17,134.74,134.71,7.4231]
[1719024470927,10.0,134.72,134.71,7.4231]
[1719024471226,10.0,134.72,134.7,0.3854764]
[1719024471528,10.0,134.72,134.71,7.4233]
[1719024472312,10.0,134.72,134.7,7.8091764]
[1719024472510,10.0,134.72,134.71,7.4233]
[1719024472715,10.17,134.74,134.71,7.4233]
[1719024472918,10.0,134.74,134.72,7.4226]
[1719024473805,10.0,134.74,134.71,7.4231]
[1719024474012,10.0,134.72,134.71,7.4231]
[1719024475016,10.0,134.72,134.7,7.8090764]
[1719024475334,10.0,134.72,134.7,7.8092764]
[1719024476226,0.17,134.73,134.7,7.8092764]
[1719024476412,0.34,134.73,134.7,7.8092764]
[1719024476613,10.0,134.72,134.7,7.8092764]
[1719024477227,10.0,134.72,134.7,0.3854764]
[1719024478131,10.0,134.72,134.7,7.8093764]
[1719024480123,10.0,134.72,134.7,0.3854764]
[1719024480837,10.0,134.72,134.7,7.8092764]
[1719024481129,10.0,134.72,134.7,7.3092764]
[1719024481331,10.0,134.72,134.64,6.3375]
[1719024481332,10.0,134.7,134.64,6.3375]
[1719024481641,0.17,134.71,134.64,6.3375]
[1719024481845,10.0,134.69,134.64,6.3375]
[1719024482014,10.0,134.67,134.66,7.4261]
[1719024482415,10.0,134.69,134.68,7.425]
[1719024482636,10.0,134.69,134.68,6.425]
[1719024484417,10.0,134.69,134.64,6.3375]
[1719024484418,10.0,134.67,134.63,15.9115]
[1719024484734,10.0,134.67,134.66,7.426]
[1719024484735,8.2479029,134.67,134.66,7.426]
[1719024484915,8.2479029,134.69,134.67,7.4254]
[1719024485310,0.34,134.7,134.61,28.5375]
[1719024485311,8.2479029,134.67,134.66,7.4258]
[1719024485533,8.2479029,134.67,134.65,7.4264]
[1719024486114,8.2479029,134.67,134.64,6.9269]
[1719024486711,8.2479029,134.67,134.57,6.2265]
[1719024486712,0.17,134.66,134.57,6.2265]
[1719024486942,0.34,134.66,134.58,20.0]
[1719024487138,8.2479029,134.64,134.58,20.0]
[1719024487346,8.5879029,134.66,134.62,7.428]
[1719024487519,8.5879029,134.66,134.58,20.0]
[1719024487520,8.2479029,134.63,134.58,20.0]
[1719024487718,8.2479029,134.63,134.57,6.2265]
[1719024487939,8.2479029,134.63,134.62,7.428]
[1719024490221,8.2479029,134.66,134.65,7.4266]
[1719024491139,8.2479029,134.66,134.63,7.4275]
[1719024491342,8.2479029,134.63,134.57,6.2265]
[1719024491532,8.4179029,134.65,134.62,7.428]
[1719024491914,8.2479029,134.63,134.61,7.4286]
[1719024492120,8.2479029,134.63,134.62,7.4283]
[1719024492640,8.2479029,134.63,134.61,7.4288]
[1719024494019,8.2479029,134.63,134.62,7.4283]
[1719024494439,8.2479029,134.65,134.64,7.4272]
[1719024496131,8.2479029,134.67,134.61,15.1267]
[1719024497822,8.2479029,134.67,134.62,20.0]
[1719024498038,8.2479029,134.7,134.63,22.2]
[1719024499044,8.2479029,134.68,134.62,20.0]
[1719024499345,8.2479029,134.66,134.62,20.0]
[1719024500032,8.2479029,134.66,134.61,15.1267]
[1719024500232,8.2479029,134.66,134.65,7.4263]
[1719024503657,8.2479029,134.7,134.63,22.2]
[1719024503961,8.2479029,134.7,134.64,20.0]
[1719024507852,8.2479029,134.7,134.65,0.34]
[1719024509461,8.2479029,134.73,134.66,44.5475]
[1719024509642,8.2479029,134.73,134.67,20.34]
[1719024510652,8.2479029,134.73,134.67,42.54]
[1719024511035,8.2479029,134.73,134.67,20.0]
[1719024511356,8.2479029,134.73,134.66,22.3475]
[1719024513044,8.2479029,134.73,134.66,44.5475]
[1719024515031,8.2479029,134.73,134.66,38.3948]
[1719024515340,8.2479029,134.7,134.63,28.3527]
[1719024515548,8.2479029,134.7,134.64,20.0]
[1719024516356,8.2479029,134.7,134.63,22.2]
[1719024517637,8.2479029,134.7,134.62,16.1948]
[1719024517836,8.2479029,134.7,134.63,20.0]
[1719024518445,6.6554,134.72,134.63,20.0]
[1719024518446,8.2479029,134.68,134.63,20.0]
[1719024518842,8.2479029,134.68,134.62,38.3948]
[1719024519055,6.6554,134.72,134.6,6.1527]
[1719024519056,8.2479029,134.65,134.6,6.1527]
[1719024519364,8.2479029,134.65,134.56,2.6375735]
[1719024519365,8.2479029,134.63,134.57,6.1527]
[1719024519540,8.2479029,134.65,134.57,6.1527]
[1719024519968,8.2479029,134.63,134.62,7.4283]
[1719024522239,8.2479029,134.65,134.64,7.4272]
[1719024523256,8.2479029,134.62,134.56,0.8854764]
[1719024523566,8.2479029,134.62,134.56,20.8854764]
[1719024523740,8.2479029,134.6,134.56,20.8854764]
[1719024524835,8.2479029,134.62,134.56,20.8854764]
[1719024525652,8.2479029,134.62,134.57,0.34]
[1719024526243,24.0878029,134.64,134.57,22.54]
[1719024526459,8.2479029,134.64,134.57,22.54]
[1719024526666,8.2479029,134.64,134.58,20.0]
[1719024526844,8.2479029,134.64,134.6,22.2]
[1719024527650,8.2479029,134.64,134.61,0.34]
[1719024528250,8.2479029,134.67,134.61,0.34]
[1719024529765,8.2479029,134.67,134.61,20.34]
[1719024532944,15.1791,134.68,134.61,20.34]
[1719024533266,15.1791,134.68,134.61,22.54]
[1719024533437,15.1791,134.68,134.62,20.0]
[1719024533843,8.2479029,134.69,134.62,20.0]
[1719024534567,8.2479029,134.69,134.63,0.17]
[1719024534867,8.2479029,134.69,134.63,0.34]
[1719024536164,23.4270029,134.72,134.64,22.2]
[1719024536370,260.4,134.74,134.64,22.2]
[1719024536371,8.2479029,134.74,134.65,42.4026]
[1719024537043,8.2479029,134.74,134.67,22.2]
[1719024537244,8.2479029,134.74,134.68,20.0]
[1719024538156,8.2479029,134.74,134.69,0.34]
[1719024539242,8.2479029,134.74,134.69,1.85681562]
[1719024539441,8.2479029,134.79,134.7,22.2]
[1719024539644,8.2479029,134.79,134.71,1.85694711]
[1719024539846,8.2479029,134.79,134.73,22.2]
[1719024540145,8.2479029,134.79,134.74,1.51660936]
[1719024542875,8.2479029,134.79,134.74,21.51660936]
[1719024543864,8.2479029,134.79,134.74,20.0]
[1719024545174,8.2479029,134.79,134.75,0.17]
[1719024545470,8.2479029,134.79,134.75,1.63233193]
[1719024547167,8.2479029,134.83,134.75,0.17]
[1719024547369,8.2479029,134.83,134.76,22.2]
[1719024547553,8.2479029,134.83,134.77,16.2965]
[1719024547748,8.2479029,134.83,134.78,20.0]
[1719024550582,8.2479029,134.85,134.78,42.2]
[1719024550753,8.2479029,134.85,134.79,0.34]
[1719024551365,24.7638029,134.88,134.81,22.2]
[1719024551574,8.2479029,134.88,134.82,20.17]
[1719024552461,8.2479029,134.88,134.83,0.17]
[1719024552676,8.2479029,134.88,134.82,20.0]
[1719024553065,8.2479029,134.86,134.82,20.0]
[1719024553666,8.2479029,134.84,134.79,22.2]
[1719024553884,8.2479029,134.86,134.8,20.17]
[1719024554665,8.2479029,134.86,134.81,0.17]
[1719024555181,8.2479029,134.88,134.81,0.17]
[1719024555380,8.2479029,134.86,134.81,0.17]
[1719024555582,8.2479029,134.88,134.81,0.17]
[1719024555970,8.2479029,134.86,134.81,0.17]
[1719024556175,8.2479029,134.88,134.81,0.17]
[1719024556379,8.2479029,134.86,134.81,0.17]
[1719024556578,8.2479029,134.86,134.8,20.0]
[1719024557590,8.2479029,134.84,134.8,20.0]
[1719024557818,8.2479029,134.86,134.8,20.0]
[1719024557993,8.2479029,134.84,134.8,20.0]
[1719024558366,8.2479029,134.87,134.8,20.0]
[1719024559066,8.2479029,134.84,134.8,20.0]
[1719024559462,22.5788,134.91,134.8,20.0]
[1719024559463,8.2479029,134.86,134.8,20.0]
[1719024559666,8.2479029,134.86,134.81,0.34]
[1719024560582,22.5788,134.91,134.81,0.34]
[1719024560583,8.2479029,134.88,134.81,0.34]
[1719024561471,8.2479029,134.88,134.82,22.2]
[1719024561680,8.2479029,134.88,134.83,20.0]
[1719024562291,8.2479029,134.88,134.84,0.34]
[1719024562476,8.2479029,134.92,134.85,22.2]
[1719024562675,8.2479029,134.92,134.86,0.17]
[1719024562865,8.2479029,134.92,134.86,20.34]
[1719024563693,8.2479029,134.92,134.88,22.2]
[1719024563996,8.2479029,134.92,134.89,20.34]
[1719024564169,8.2479029,134.94,134.89,20.34]
[1719024565069,8.2479029,134.94,134.89,20.0]
[1719024565277,8.2479029,134.92,134.89,20.0]
[1719024565496,8.2479029,134.92,134.88,20.0]
[1719024566387,8.2479029,134.92,134.89,0.34]
[1719024567268,8.2479029,134.94,134.89,0.34]
[1719024569684,8.2479029,134.92,134.89,0.34]
[1719024571903,8.2479029,134.94,134.89,0.34]
[1719024572297,8.2479029,134.94,134.9,22.2]
[1719024572489,8.2479029,134.94,134.91,0.34]
[1719024573484,8.2479029,134.94,134.9,22.2]
[1719024574483,8.2479029,134.94,134.91,0.34]
[1719024577007,8.2479029,134.94,134.89,23.0226]
[1719024578685,8.2479029,134.92,134.88,20.0]
[1719024578989,8.2479029,134.92,134.86,20.0]
[1719024579385,8.2479029,134.9,134.86,20.0]
[1719024579602,8.2479029,134.92,134.86,20.0]
[1719024580405,8.2479029,134.92,134.87,0.17]
[1719024581182,8.2479029,134.94,134.88,22.2]
[1719024581488,8.2479029,134.94,134.91,22.2]
[1719024581687,8.2479029,134.94,134.92,0.34]
[1719024582285,8.2479029,134.98,134.92,0.34]
[1719024583181,8.2479029,134.98,134.92,20.34]
[1719024586692,8.2479029,134.96,134.92,20.0]
[1719024588509,8.2479029,134.96,134.93,0.34]
[1719024590608,8.2479029,134.96,134.92,20.0]
[1719024591195,8.2479029,134.96,134.89,22.2]
[1719024591399,8.2479029,134.93,134.89,22.2]
[1719024594911,8.2479029,134.95,134.89,22.2]
[1719024595119,8.2479029,134.93,134.89,22.2]
[1719024595290,7.4087,134.98,134.89,22.2]
[1719024595291,8.2479029,134.95,134.89,22.2]
[1719024595714,8.2479029,134.95,134.9,0.17]
[1719024595916,8.2479029,134.95,134.9,0.34]
[1719024598412,8.2479029,134.95,134.9,20.34]
[1719024600116,8.2479029,134.97,134.9,20.34]
[1719024600418,8.2479029,134.97,134.92,22.2]
[1719024600622,8.2479029,134.97,134.93,0.34]
[1719024600822,8.2479029,134.97,134.92,22.37]
[1719024601305,8.2479029,134.97,134.93,0.17]
[1719024601501,8.2479029,134.97,134.93,0.34]
[1719024603012,8.2479029,134.97,134.93,20.34]
[1719024604723,15.0585,135.02,134.93,20.34]
[1719024604724,8.2479029,135.0,134.93,20.34]
[1719024605305,8.2479029,135.0,134.95,22.2]
[1719024605510,23.3064029,135.02,134.95,22.2]
[1719024605703,23.3064029,135.02,134.96,0.34]
[1719024607103,8.2479029,135.02,134.96,0.34]
[1719024607819,8.2479029,135.02,134.96,20.34]
[1719024608129,0.8854764,135.04,134.98,22.2]
[1719024608330,0.8854764,135.04,134.99,0.34]
[1719024609235,0.8854764,135.04,135.01,22.2]
[1719024609403,0.8854764,135.04,135.02,0.34]
[1719024609598,0.8854764,135.04,135.02,20.34]
[1719024610437,0.8854764,135.04,135.02,22.54]
[1719024612120,0.8854764,135.04,134.99,42.2]
[1719024612506,0.8854764,135.04,134.97,6.549]
[1719024612705,0.8854764,135.04,134.98,20.0]
[1719024613113,8.2479029,135.03,134.98,20.0]
[1719024614125,8.2479029,135.03,134.99,0.34]
[1719024614712,8.2479029,135.03,134.98,20.0]
[1719024614912,8.2479029,135.03,134.96,22.2]
[1719024615335,8.2479029,135.01,134.93,28.749]
[1719024615839,8.2479029,135.03,134.93,28.749]
[1719024616338,8.2479029,135.03,134.94,20.0]
[1719024616549,8.2479029,135.01,134.95,0.34]
[1719024617339,8.2479029,134.99,134.94,20.0]
[1719024617510,8.2479029,134.99,134.91,15.2638]
[1719024618538,8.2479029,134.97,134.91,15.2638]
[1719024618736,8.2479029,134.97,134.92,0.34]
[1719024618932,8.2479029,134.97,134.92,20.34]
[1719024619132,8.2479029,134.97,134.92,20.0]
[1719024619324,8.2479029,134.95,134.91,20.0]
[1719024619526,8.2479029,134.97,134.88,15.8976]
[1719024619723,8.2479029,134.93,134.88,15.8976]
[1719024619922,8.2479029,134.93,134.86,28.749]
[1719024620122,8.2479029,134.95,134.86,28.749]
[1719024620535,8.2479029,134.93,134.86,28.749]
[1719024620737,8.2479029,134.95,134.89,22.2]
[1719024626343,8.2479029,134.95,134.9,20.34]
[1719024626722,15.081,134.98,134.9,20.34]
[1719024626723,8.2479029,134.97,134.9,20.34]
[1719024630446,8.2479029,134.95,134.9,20.34]
[1719024633645,8.2479029,134.95,134.9,20.0]
[1719024633837,6.2998,134.94,134.89,22.2]
[1719024634623,6.2998,134.94,134.86,22.2]
[1719024634845,8.2479029,134.92,134.87,20.0]
[1719024635033,14.5477029,134.94,134.87,20.0]
[1719024635840,14.5477029,134.94,134.88,0.17]
[1719024636046,14.5477029,134.94,134.88,0.34]
[1719024638045,14.5477029,134.94,134.87,20.0]
[1719024638046,15.3786,134.93,134.87,20.0]
[1719024638230,15.3786,134.93,134.86,22.2]
[1719024638833,8.2479029,134.92,134.86,22.2]
[1719024642336,15.3786,134.93,134.87,0.17]
[1719024642543,15.3786,134.93,134.87,0.34]
[1719024642751,23.6265029,134.96,134.89,22.2]
[1719024643058,23.6265029,134.96,134.9,20.34]
[1719024646547,8.2479029,134.96,134.92,22.2]
[1719024646745,8.2479029,134.96,134.93,0.34]
[1719024648046,8.2479029,134.96,134.92,22.2]
[1719024655746,8.2479029,134.96,134.9,20.0]
[1719024656067,8.2479029,134.96,134.88,42.2]
[1719024656449,8.2479029,134.94,134.88,42.2]
[1719024657278,8.2479029,134.94,134.89,0.34]
[1719024664181,8.2479029,134.92,134.83,44.836598]
[1719024664371,8.2479029,134.92,134.84,20.0]
[1719024664570,8.2479029,134.92,134.83,37.3353]
[1719024664769,8.2479029,134.92,134.86,22.2]
[1719024665568,16.2959,134.95,134.89,22.2]
[1719024665770,8.2479029,134.96,134.92,22.2]
[1719024672965,8.2479029,134.96,134.9,0.34]
[1719024673884,8.2479029,134.96,134.89,42.2]
[1719024674098,8.2479029,134.92,134.84,15.7193]
[1719024674263,8.2479029,134.9,134.86,22.2]
[1719024674795,14.6810029,134.94,134.86,22.2]
[1719024674991,8.2479029,134.92,134.86,22.2]
[1719024675199,8.2479029,134.9,134.86,22.2]
[1719024675492,8.2479029,134.93,134.86,22.2]
[1719024675874,8.2479029,134.91,134.86,22.2]
[1719024676104,8.2479029,134.93,134.86,22.2]
[1719024676600,8.2479029,134.91,134.86,22.2]
[1719024676764,8.2479029,134.93,134.86,22.2]
[1719024676965,8.2479029,134.93,134.85,0.34]
[1719024677265,8.2479029,134.93,134.85,20.34]
[1719024677462,8.2479029,134.91,134.85,20.34]
[1719024677871,8.2479029,134.91,134.85,0.34]
[1719024679090,8.2479029,134.91,134.84,20.0]
[1719024679294,8.2479029,134.89,134.83,20.0]
[1719024679494,24.3711029,134.89,134.83,20.0]
[1719024679673,8.2479029,134.87,134.82,20.0]
[1719024679874,8.2479029,134.87,134.81,22.2]
[1719024680268,6.4331,134.88,134.78,16.1232]
[1719024680468,8.2479029,134.85,134.78,16.1232]
[1719024680770,8.2479029,134.85,134.77,22.2]
[1719024681001,8.2479029,134.83,134.77,22.2]
[1719024681677,8.2479029,134.83,134.78,0.17]
[1719024681884,8.2479029,134.83,134.78,0.34]
[1719024682290,8.2479029,134.83,134.78,0.17]
[1719024682800,8.2479029,134.83,134.77,22.2]
[1719024683603,8.2479029,134.83,134.78,0.17]
[1719024683981,8.2479029,134.83,134.74,41.731]
[1719024683982,8.2479029,134.83,134.76,19.45]
[1719024684188,8.2479029,134.81,134.76,19.45]
[1719024684490,14.6810029,134.83,134.71,21.731]
[1719024684696,8.2479029,134.8,134.73,19.45]
[1719024684888,8.2479029,134.8,134.74,20.0]
[1719024685089,8.2479029,134.82,134.74,20.0]
[1719024685808,8.2479029,134.8,134.74,20.0]
[1719024686324,14.6810029,134.83,134.74,20.0]
[1719024686607,8.2479029,134.81,134.74,20.0]
[1719024686810,6.4331,134.83,134.74,20.0]
[1719024686811,14.6810029,134.83,134.75,0.34]
[1719024687192,8.2479029,134.81,134.75,0.34]
[1719024688599,8.2479029,134.79,134.74,20.0]
[1719024688907,8.2479029,134.82,134.74,20.0]
[1719024689210,8.2479029,134.79,134.74,20.0]
[1719024689803,8.2479029,134.81,134.74,20.0]
[1719024690102,8.2479029,134.79,134.74,20.0]
[1719024690308,8.2479029,134.77,134.73,19.45]
[1719024693098,8.2479029,134.77,134.74,0.17]
[1719024693414,23.7669029,134.79,134.74,20.34]
[1719024697096,23.7669029,134.79,134.74,20.0]
[1719024697691,8.2479029,134.77,134.71,35.1693]
[1719024697896,8.2479029,134.77,134.72,20.0]
[1719024698600,8.2479029,134.77,134.73,0.17]
[1719024698797,8.2479029,134.77,134.73,0.34]
[1719024699318,8.2479029,134.77,134.73,0.17]
[1719024700822,8.2479029,134.77,134.73,0.34]
[1719024705221,23.7669029,134.79,134.73,0.34]
[1719024705407,30.8571029,134.83,134.78,6.48]